bitfinex/quotes_ETHUSD_20240717
["timestamp","ask_amount","ask_price","bid_price","bid_amount"]
[1721225444986,0.33213168,3462.9,3461.7,3.43875]
[1721225445184,0.33213168,3462.9,3461.8,2.88861]
[1721225445379,2.88792,3462.7,3461.9,0.55]
[1721225445630,0.04335243,3462.6,3461.9,0.55]
[1721225445915,0.04335243,3462.6,3461.7,0.55]
[1721225446077,0.29312724,3462.5,3461.7,0.55]
[1721225446482,2.93079181,3462.4,3461.5,0.55]
[1721225446683,2.93079181,3462.4,3461.3,0.55]
[1721225447130,2.88843,3462.1,3461.3,0.55]
[1721225447430,3.0,3462.3,3461.1,0.55]
[1721225447574,2.8886,3461.9,3460.8,0.55]
[1721225447783,0.04248861,3461.8,3460.7,2.88957]
[1721225448012,2.88876,3461.7,3460.6,5.20053]
[1721225448324,2.88852,3462.0,3460.6,5.20053]
[1721225448325,0.04241463,3461.6,3460.7,2.88957]
[1721225448527,3.0,3462.1,3461.0,2.88926]
[1721225448740,2.88711,3463.7,3461.3,2.88908]
[1721225448741,0.04237764,3461.5,3461.3,2.88908]
[1721225449082,3.0,3462.3,3461.1,4.58917]
[1721225449388,3.0,3462.3,3460.7,4.159022]
[1721225449389,0.04108588,3462.2,3461.2,0.55]
[1721225449618,2.88868,3461.8,3461.2,0.55]
[1721225449923,0.32994663,3461.7,3460.3,2.88989]
[1721225450081,2.889,3461.5,3460.3,2.88991]
[1721225450286,2.88902,3461.4,3460.2,2.88994]
[1721225450595,2.88902,3461.4,3460.1,5.17448]
[1721225450596,2.88917,3461.2,3460.1,2.2844]
[1721225450796,2.88917,3461.2,3459.7,2.89041]
[1721225450797,0.04102714,3461.1,3459.7,2.89041]
[1721225450981,2.88942,3460.9,3459.8,5.053098]
[1721225451179,2.93036238,3460.8,3459.8,1.053098]
[1721225451406,2.93036238,3460.8,3459.4,2.4717]
[1721225451407,2.88984,3460.4,3459.4,2.4717]
[1721225451984,0.04061809,3460.3,3459.4,2.4717]
[1721225452191,2.93061809,3460.3,3459.0,2.89098]
[1721225452519,2.89009,3460.1,3459.1,2.89086]
[1721225452721,2.93061809,3460.3,3458.9,2.89107]
[1721225452722,0.04038442,3460.2,3459.2,2.89083]
[1721225452907,0.04029061,3460.0,3459.2,5.16902]
[1721225453092,0.04032764,3460.1,3459.3,2.89075]
[1721225453294,3.0,3460.7,3459.5,2.89058]
[1721225453522,0.04031037,3460.0,3459.7,2.89034]
[1721225453738,0.288868,3461.7,3459.6,2.89049]
[1721225453739,2.8895,3460.8,3459.6,2.89049]
[1721225453941,2.88968,3460.6,3459.3,2.89072]
[1721225454237,2.88968,3460.6,3459.4,2.89062]
[1721225454238,2.93026597,3460.5,3459.4,2.89062]
[1721225454388,2.93026597,3460.5,3459.5,0.55]
[1721225454593,0.04045597,3460.5,3459.7,2.8904]
[1721225454836,2.88959,3460.7,3459.8,0.55]
[1721225455001,2.88976,3460.5,3459.8,0.55]
[1721225455199,0.03920151,3460.4,3459.5,0.55]
[1721225455990,2.89008,3460.2,3458.8,2.4717]
[1721225456198,2.89025,3459.9,3458.8,2.4717]
[1721225456417,0.03925601,3459.8,3458.8,2.4717]
[1721225456613,0.03925601,3459.8,3458.9,1.12542]
[1721225456896,2.92964601,3459.8,3458.4,7.94273348]
[1721225457101,2.89046,3459.7,3458.4,4.89270348]
[1721225457300,2.89046,3459.7,3458.5,3.597375]
[1721225457536,0.03902495,3459.6,3458.5,0.705955]
[1721225457845,0.03902495,3459.6,3458.4,0.30125348]
[1721225457846,2.89084,3459.2,3458.4,0.30125348]
[1721225458138,0.03897814,3459.1,3458.4,0.30125348]
[1721225458299,2.8911,3458.9,3457.6,5.94216]
[1721225458503,2.8911,3458.9,3457.9,2.89192]
[1721225458738,0.03861713,3458.8,3458.0,0.689192]
[1721225459314,0.03861713,3458.8,3458.0,3.581032]
[1721225459527,0.03861713,3458.8,3458.0,0.689192]
[1721225459713,2.89089,3459.2,3458.1,0.55]
[1721225459952,0.03849233,3458.7,3458.1,0.55]
[1721225460119,2.89106,3459.0,3458.2,0.6132214]
[1721225460440,5.89093,3459.1,3458.3,0.55]
[1721225460606,2.92960741,3459.0,3458.3,0.55]
[1721225460805,2.89109,3458.9,3458.1,0.55]
[1721225461001,2.89109,3458.9,3458.0,0.55]
[1721225461002,0.0385018,3458.8,3458.0,0.55]
[1721225461315,2.9297018,3458.8,3458.0,0.55]
[1721225461529,0.0385018,3458.8,3457.8,2.89195]
[1721225461701,0.0385018,3458.8,3457.8,0.863731]
[1721225461702,2.9296718,3458.8,3457.8,0.863731]
[1721225461899,2.9296718,3458.8,3457.9,0.55]
[1721225462103,2.89135,3458.6,3457.9,0.55]
[1721225462408,0.03850323,3458.5,3457.7,3.44209]
[1721225462603,2.89127,3458.7,3457.7,0.55]
[1721225462833,0.03863917,3458.6,3457.8,0.37433086]
[1721225463015,0.03863917,3458.6,3457.9,0.55]
[1721225463230,2.8913,3458.7,3457.9,0.55]
[1721225463422,0.03863917,3458.6,3457.9,0.55]
[1721225463779,2.89152,3458.4,3457.9,0.55]
[1721225464052,0.03858734,3458.3,3457.9,0.55]
[1721225464214,2.89168,3458.2,3457.2,0.30134776]
[1721225464410,0.03829577,3458.1,3457.2,0.30134776]
[1721225465043,0.03829577,3458.1,3457.1,2.89259]
[1721225465371,0.03829577,3458.1,3457.3,2.89234]
[1721225465656,3.0,3458.6,3457.5,2.89218]
[1721225465855,5.89135,3458.6,3457.6,1.128452]
[1721225466011,0.03822643,3458.5,3457.6,1.128452]
[1721225466210,0.03822643,3458.5,3457.7,2.89203]
[1721225466421,3.0,3458.6,3457.8,0.55]
[1721225466606,0.03825606,3458.5,3457.8,0.55]
[1721225466833,0.03825606,3458.5,3457.9,0.4020482]
[1721225467033,0.03825606,3458.5,3458.0,0.55]
[1721225467549,0.03825606,3458.5,3457.9,0.55]
[1721225467848,0.03825606,3458.5,3458.1,2.8917]
[1721225468351,5.33726,3459.7,3458.1,2.8917]
[1721225468352,0.03695698,3458.4,3458.2,0.55]
[1721225468663,2.89085,3459.2,3458.2,0.55]
[1721225468868,2.89101,3459.0,3458.3,0.34417]
[1721225469026,2.89165,3458.3,3457.9,8.72025618]
[1721225469227,2.89151,3458.4,3457.9,8.72025618]
[1721225469540,2.89184,3458.0,3457.9,8.72025618]
[1721225469742,5.78368,3458.0,3457.9,8.72025618]
[1721225470065,9.40250719,3458.0,3457.9,8.72025618]
[1721225470214,2.89226,3457.6,3456.6,2.89298]
[1721225470419,2.89206,3457.8,3456.6,2.89298]
[1721225470420,5.92884557,3457.5,3456.6,2.89298]
[1721225470727,5.29988557,3457.5,3455.6,2.4447]
[1721225471041,5.29988557,3457.5,3455.1,1.19698844]
[1721225471042,2.89285,3456.8,3455.7,2.89376]
[1721225471240,2.89236,3457.4,3455.7,2.89376]
[1721225471241,2.92884677,3456.7,3455.8,0.578767]
[1721225471767,2.92884677,3456.7,3455.7,0.30125638]
[1721225471768,2.89303,3456.6,3455.7,0.30125638]
[1721225471912,3.0,3456.6,3455.7,0.30125638]
[1721225472250,2.8926,3457.1,3455.7,0.30125638]
[1721225472251,0.03622675,3456.5,3455.7,3.19496638]
[1721225472490,5.89268,3457.0,3455.9,2.89358]
[1721225472620,5.89268,3457.0,3455.7,0.30125638]
[1721225472621,0.03620687,3456.9,3455.7,0.30125638]
[1721225472815,0.03620687,3456.9,3455.9,2.89354]
[1721225473012,3.0,3457.3,3456.0,0.31947964]
[1721225473215,3.0,3457.3,3456.2,2.89333]
[1721225473216,0.036046,3457.2,3456.2,2.89333]
[1721225473412,0.036046,3457.2,3456.3,0.60785831]
[1721225473674,2.2633,3457.5,3456.3,0.55]
[1721225473814,3.0,3457.4,3456.1,0.55]
[1721225474158,0.03268527,3457.4,3456.4,2.89316]
[1721225474456,2.89211,3457.7,3456.5,3.44308]
[1721225474663,3.03255488,3457.6,3456.6,2.893]
[1721225474954,3.03255488,3457.6,3456.7,0.55]
[1721225475166,0.03255488,3457.6,3456.7,0.55]
[1721225475472,0.91421337,3457.6,3456.5,0.55]
[1721225475754,2.89244,3457.3,3456.3,0.55]
[1721225475955,2.89251,3457.2,3456.3,0.55]
[1721225476127,2.89251,3457.2,3456.1,2.89342]
[1721225476128,2.89261,3457.1,3456.1,2.89342]
[1721225476453,2.89261,3457.1,3454.5,0.89774133]
[1721225476454,0.03254684,3457.0,3456.0,2.8935]
[1721225476833,0.03254684,3457.0,3456.1,0.05786163]
[1721225477235,0.03254684,3457.0,3456.0,2.8935]
[1721225477236,2.92522684,3457.0,3456.0,2.8935]
[1721225477420,0.03254684,3457.0,3456.4,2.89318]
[1721225477617,0.03254684,3457.0,3456.5,0.578651]
[1721225477822,0.03254684,3457.0,3456.6,0.55]
[1721225478137,2.2783,3457.8,3456.6,0.55]
[1721225478345,0.03225604,3456.9,3456.7,2.89293]
[1721225478533,2.2783,3457.8,3456.9,2.89276]
[1721225478730,2.89191,3458.0,3456.9,2.89276]
[1721225478962,0.03247038,3457.7,3457.0,0.55]
[1721225479156,2.92441226,3457.9,3457.0,0.55]
[1721225479314,2.353,3458.4,3457.0,0.93449331]
[1721225479315,0.0323908,3457.6,3457.0,0.93449331]
[1721225479660,0.03240315,3457.5,3457.0,3.82716331]
[1721225479961,3.0,3458.3,3457.1,2.89259]
[1721225480251,2.353,3458.4,3457.2,0.55]
[1721225480252,2.89177,3458.1,3457.2,0.55]
[1721225480561,3.03262405,3458.0,3457.1,2.89258]
[1721225480773,2.92446405,3458.0,3457.2,0.55]
[1721225481065,2.92446405,3458.0,3456.7,0.4021731]
[1721225481066,2.89211,3457.7,3456.7,0.4021731]
[1721225481264,3.0,3457.9,3456.0,5.2991]
[1721225481265,2.89236,3457.4,3456.4,2.89318]
[1721225481417,2.89236,3457.4,3456.5,0.55]
[1721225481418,0.03152364,3457.3,3456.5,0.55]
[1721225481623,0.03152364,3457.3,3456.3,3.44326]
[1721225481838,2.89227,3457.5,3456.3,3.44326]
[1721225482064,2.92375797,3457.4,3456.4,0.66380194]
[1721225482270,5.21005797,3457.4,3456.5,0.55]
[1721225482424,2.31770797,3457.4,3456.5,2.89309]
[1721225482622,0.03140797,3457.4,3456.6,3.44301]
[1721225482861,2.89202,3457.8,3456.6,3.44301]
[1721225482862,2.89204,3457.8,3456.7,0.55]
[1721225483078,6.802196,3457.7,3456.7,0.55]
[1721225483361,2.89221,3457.6,3456.7,0.55]
[1721225483523,3.910096,3457.7,3456.7,0.55]
[1721225483720,0.03162984,3457.5,3456.8,2.89284]
[1721225483937,0.03164714,3457.6,3456.9,0.55]
[1721225484185,0.03157385,3457.4,3456.9,0.55]
[1721225484479,0.03150416,3457.3,3456.9,0.55]
[1721225484653,3.0,3457.7,3456.9,3.44276]
[1721225484959,0.03161629,3457.6,3457.0,2.89267]
[1721225485147,0.03161629,3457.6,3457.1,0.55]
[1721225485346,0.03161629,3457.6,3457.2,2.89249]
[1721225485686,5.89173,3458.2,3457.3,0.55]
[1721225485978,0.03194845,3458.1,3457.4,2.95012433]
[1721225486161,0.03194845,3458.1,3457.6,2.89212]
[1721225486347,2.89114,3458.9,3457.8,2.89195]
[1721225486685,2.92315382,3458.8,3457.8,2.89195]
[1721225486838,0.03194382,3458.8,3457.9,0.55]
[1721225487043,2.322,3459.1,3458.0,2.89178]
[1721225487254,2.322,3459.1,3457.9,3.44191]
[1721225487255,0.03099505,3459.0,3458.1,0.55]
[1721225487435,0.03099505,3459.0,3458.0,2.89178]
[1721225487640,0.03099505,3459.0,3458.1,3.9042717]
[1721225487852,0.03099505,3459.0,3458.2,3.44166]
[1721225488068,2.89087,3459.2,3458.2,0.55]
[1721225488253,2.92216079,3459.1,3458.2,0.55]
[1721225488449,0.58129208,3459.0,3458.0,3.44177]
[1721225488776,0.0312345,3458.9,3458.0,3.44177]
[1721225488963,0.0312345,3458.9,3458.1,2.89174]
[1721225489170,0.0312345,3458.9,3458.2,0.55]
[1721225489479,2.92221927,3458.8,3458.0,0.55]
[1721225489640,0.03103927,3458.8,3457.9,3.44191]
[1721225489834,2.89106,3459.0,3458.0,0.4075317]
[1721225490052,5.92218982,3458.9,3458.0,0.4075317]
[1721225490261,5.92218982,3458.9,3457.9,3.44191]
[1721225490467,2.89118,3458.8,3457.9,0.55]
[1721225490651,0.03102286,3458.7,3457.9,0.55]
[1721225490851,3.03102286,3458.7,3457.1,2.89259]
[1721225491186,2.89156,3458.4,3457.3,2.89242]
[1721225491387,3.0,3458.3,3457.1,1.7]
[1721225491558,3.0,3458.3,3457.9,2.89192]
[1721225491559,0.03095369,3458.3,3457.9,2.89192]
[1721225491786,0.03095369,3458.3,3457.6,2.89211]
[1721225492074,2.89114,3458.9,3457.4,2.89233]
[1721225492075,2.89131,3458.7,3457.5,2.89225]
[1721225492281,0.03122008,3458.6,3457.7,2.89204]
[1721225492484,0.03122008,3458.6,3457.8,0.55]
[1721225492669,3.0,3458.8,3457.8,3.44199]
[1721225492877,0.03125278,3458.7,3457.9,2.89191]
[1721225493054,0.03125278,3458.7,3458.0,0.55]
[1721225493394,3.0,3459.0,3458.0,0.55]
[1721225493544,0.03121572,3458.6,3458.0,0.55]
[1721225493750,2.89093,3459.1,3458.1,0.344191]
[1721225493952,0.03117867,3458.5,3458.0,0.55]
[1721225494271,0.03114161,3458.4,3458.0,0.55]
[1721225494477,3.0,3459.0,3458.0,0.55]
[1721225494478,3.0,3458.8,3458.1,2.89173]
[1721225494655,0.03123155,3458.3,3458.2,0.55]
[1721225494849,2.89094,3459.1,3458.0,3.44182]
[1721225495091,3.83627891,3459.0,3458.1,2.89175]
[1721225495257,3.83627891,3459.0,3458.2,0.55]
[1721225495458,3.83627891,3459.0,3458.2,3.44164]
[1721225495459,3.03149091,3459.0,3458.2,3.44164]
[1721225495659,0.03149091,3459.0,3458.2,3.44164]
[1721225495859,2.89084,3459.2,3458.2,3.44164]
[1721225496061,0.03156197,3459.1,3458.2,3.44164]
[1721225496264,0.03156197,3459.1,3458.2,0.55]
[1721225496462,3.73041117,3459.1,3458.2,0.55]
[1721225497299,0.03156197,3459.1,3458.2,0.55]
[1721225497451,4.39519534,3460.9,3458.5,2.89141]
[1721225497452,3.0,3459.2,3458.5,2.89141]
[1721225497672,0.03053713,3459.0,3458.6,3.49913823]
[1721225497874,2.3686,3459.8,3458.7,2.89124]
[1721225497875,2.89043,3459.7,3458.7,2.89124]
[1721225498202,0.03076459,3459.6,3458.8,0.55]
[1721225498420,0.03076459,3459.6,3458.9,2.89103]
[1721225498588,2.89017,3460.0,3459.0,0.55]
[1721225498952,2.8901,3460.1,3459.0,3.441]
[1721225499078,0.0297755,3459.9,3459.3,2.89075]
[1721225499279,5.16164,3460.4,3459.4,1.128158]
[1721225499280,2.2718,3460.4,3459.4,1.128158]
[1721225499590,0.02973847,3459.8,3459.4,0.55]
[1721225499774,2.88993,3460.3,3459.4,0.55]
[1721225499969,0.02974154,3459.7,3459.4,0.55]
[1721225500190,2.89001,3460.2,3459.4,0.55]
[1721225500477,0.805174,3460.1,3459.2,3.44081]
[1721225500723,0.83506365,3460.1,3459.2,3.44081]
[1721225500875,2.89039,3459.8,3458.8,2.89111]
[1721225501223,2.89022,3460.0,3458.9,0.55]
[1721225501224,2.92016154,3459.7,3458.9,0.55]
[1721225501513,2.92016154,3459.7,3458.7,0.55]
[1721225501674,2.89073,3459.4,3458.3,2.89156]
[1721225501882,2.89073,3459.4,3458.4,2.8915]
[1721225502178,2.89073,3459.4,3458.2,2.89162]
[1721225502179,3.80131201,3459.3,3458.2,2.89162]
[1721225502414,6.80131201,3459.3,3458.3,2.89157]
[1721225502622,2.8909,3459.2,3457.9,2.3471]
[1721225502780,2.89097,3459.1,3458.1,2.89171]
[1721225503117,2.92052056,3459.1,3458.1,2.89171]
[1721225503320,2.89101,3459.0,3458.1,2.89171]
[1721225503475,0.02957979,3459.0,3458.1,2.89171]
[1721225503786,2.89109,3458.9,3457.7,2.89205]
[1721225503988,2.89149,3458.5,3457.3,2.8924]
[1721225504175,2.89149,3458.5,3457.4,2.89234]
[1721225504515,5.23035,3458.3,3457.0,2.8926]
[1721225504817,2.89181,3458.1,3456.8,2.89281]
[1721225505031,2.89212,3457.7,3457.1,0.30139322]
[1721225505249,2.89233,3457.5,3456.4,2.89317]
[1721225505605,2.89233,3457.5,3456.5,4.30144588]
[1721225505940,0.02863507,3457.4,3456.5,1.54226147]
[1721225506157,0.02863507,3457.4,3456.9,2.89274]
[1721225506462,0.02863507,3457.4,3456.6,1.7]
[1721225506463,2.89153,3458.4,3457.0,0.55]
[1721225506643,0.02847667,3457.3,3457.2,2.8925]
[1721225506828,5.3387,3458.3,3457.4,2.89233]
[1721225507028,5.3387,3458.3,3457.5,0.55]
[1721225507029,3.0,3458.2,3457.5,0.55]
[1721225507244,3.0,3458.2,3457.3,0.55]
[1721225507245,3.02875102,3458.2,3457.3,0.55]
[1721225507536,3.02875102,3458.2,3457.4,0.344251]
[1721225507537,3.0,3458.1,3457.4,0.344251]
[1721225507744,0.02775613,3458.0,3457.6,2.89217]
[1721225507940,0.02775613,3458.0,3457.8,2.89194]
[1721225508104,2.3967,3458.8,3457.8,2.89194]
[1721225508300,0.55620601,3458.7,3457.9,0.55]
[1721225508505,0.02742201,3458.7,3457.9,0.55]
[1721225509006,0.02742201,3458.7,3457.7,0.55]
[1721225509318,0.02742201,3458.7,3457.6,2.89216]
[1721225509504,0.02742201,3458.7,3457.7,3.44208]
[1721225509805,3.02742201,3458.7,3457.7,3.44208]
[1721225510003,5.91871201,3458.7,3457.7,3.44208]
[1721225510266,0.02742201,3458.7,3457.8,2.94984465]
[1721225510420,0.02742201,3458.7,3458.0,2.89182]
[1721225510625,2.89099,3459.1,3458.0,2.89182]
[1721225510920,2.89099,3459.1,3458.1,0.55]
[1721225511148,0.02758987,3459.0,3458.1,0.55]
[1721225511455,0.02758987,3459.0,3458.1,1.183383]
[1721225511760,2.89084,3459.2,3458.1,1.183383]
[1721225511923,0.02727619,3458.9,3458.1,4.075133]
[1721225512280,0.02724786,3458.8,3458.1,1.183383]
[1721225512555,3.0,3459.0,3458.1,0.55]
[1721225512761,0.02724279,3458.7,3458.1,3.44175]
[1721225512969,2.89103,3459.0,3458.1,0.55]
[1721225513170,0.02718597,3458.6,3457.9,2.89192]
[1721225513367,2.8914,3458.6,3457.5,2.89221]
[1721225513587,0.02702045,3458.5,3457.5,2.89221]
[1721225513885,0.02702045,3458.5,3457.6,2.89217]
[1721225514279,2.89133,3458.7,3457.6,2.89217]
[1721225514571,0.02650773,3458.6,3457.6,2.89217]
[1721225514769,0.02650773,3458.6,3457.7,3.5049551]
[1721225515062,0.02650773,3458.6,3457.8,0.55]
[1721225515480,2.89133,3458.7,3457.8,0.55]
[1721225515630,0.02651616,3458.6,3457.8,0.55]
[1721225515827,12.16,3459.9,3458.1,2.89175]
[1721225515828,5.89077,3459.3,3458.1,2.89175]
[1721225516061,1.58694707,3459.2,3458.2,3.44166]
[1721225516264,0.02660007,3459.2,3458.2,3.44166]
[1721225516957,0.02660007,3459.2,3458.3,2.89158]
[1721225517130,0.02660007,3459.2,3458.4,0.55]
[1721225517540,0.02660007,3459.2,3458.7,2.89118]
[1721225517838,11.3280663,3460.1,3458.8,0.55]
[1721225517839,2.8906,3459.5,3458.8,0.55]
[1721225518030,3.4958074,3459.5,3458.8,0.55]
[1721225518233,3.4958074,3459.5,3458.7,0.55]
[1721225519171,3.0,3459.4,3458.6,2.89133]
[1721225519334,0.0270994,3459.5,3458.7,0.55]
[1721225519674,2.9177394,3459.5,3458.7,0.55]
[1721225519836,3.0,3459.4,3458.5,0.55]
[1721225520037,5.91777429,3459.4,3458.5,0.55]
[1721225520541,5.91777429,3459.4,3458.4,0.55]
[1721225520741,5.91777429,3459.4,3458.0,2.2908]
[1721225520742,3.02709429,3459.4,3458.0,2.2908]
[1721225520947,0.02709429,3459.4,3458.0,2.2908]
[1721225521274,2.91782429,3459.4,3458.1,2.89168]
[1721225521580,2.91782429,3459.4,3458.0,2.2908]
[1721225521581,2.89093,3459.1,3458.0,5.18258]
[1721225521879,2.89093,3459.1,3458.0,5.18257]
[1721225522087,2.89109,3458.9,3457.7,3.5048851]
[1721225522373,2.89093,3459.1,3457.7,3.5048851]
[1721225522374,5.15754,3459.1,3458.0,2.89183]
[1721225522588,3.0,3459.2,3458.2,2.89166]
[1721225522736,3.0,3459.2,3457.7,5.5918751]
[1721225523082,2.89053,3459.6,3458.5,2.8914]
[1721225523083,3.0,3459.5,3458.5,2.8914]
[1721225523585,3.0,3459.5,3458.1,2.89175]
[1721225523586,2.89089,3459.2,3458.1,2.89175]
[1721225523733,2.89089,3459.2,3458.0,2.89184]
[1721225523935,2.89051,3459.6,3457.8,0.55918751]
[1721225523936,3.0,3459.1,3457.8,0.55918751]
[1721225524167,2.89128,3458.7,3457.8,2.892]
[1721225524335,2.89135,3458.6,3457.6,2.89217]
[1721225525284,2.89135,3458.6,3457.7,2.89208]
[1721225525644,2.89143,3458.5,3457.8,0.55]
[1721225525856,2.89159,3458.4,3457.2,2.89245]
[1721225526074,5.89159,3458.4,3457.4,2.89234]
[1721225526249,2.8916,3458.3,3457.2,2.89245]
[1721225526452,5.89151,3458.4,3457.3,0.60133266]
[1721225526647,3.0,3458.4,3457.5,2.89225]
[1721225527038,3.531048,3458.6,3457.1,7.67127223]
[1721225527284,2.89185,3458.0,3457.1,0.30127223]
[1721225527440,2.89211,3457.7,3457.1,0.30127223]
[1721225527644,5.22841,3457.7,3456.6,2.89295]
[1721225527942,3.0,3457.6,3456.7,0.30136191]
[1721225528349,3.0,3457.6,3456.7,3.19427191]
[1721225528548,3.0,3457.8,3456.9,2.89274]
[1721225528871,3.0,3457.8,3457.0,4.05135719]
[1721225529070,5.89187,3458.0,3457.0,1.15868719]
[1721225529293,2.89202,3457.8,3456.7,0.30136191]
[1721225529443,2.89227,3457.5,3456.7,0.30136191]
[1721225529786,3.0,3457.7,3456.7,0.30136191]
[1721225529951,2.89215,3457.7,3456.7,0.30136191]
[1721225530137,3.0,3457.6,3456.7,0.30136191]
[1721225530343,5.89219,3457.6,3456.7,0.9101151]
[1721225530738,5.89219,3457.6,3456.8,0.55]
[1721225530941,3.0,3457.6,3456.8,0.55]
[1721225531154,3.0,3457.8,3456.8,3.44278]
[1721225531499,2.8921,3457.7,3456.7,0.30136191]
[1721225531687,3.0,3457.8,3456.7,0.30136191]
[1721225531688,2.89242,3457.4,3456.7,0.30136191]
[1721225531890,2.89243,3457.3,3456.7,0.30136191]
[1721225532176,2.89268,3457.0,3456.7,0.30136191]
[1721225532377,2.89251,3457.2,3456.1,2.89343]
[1721225532378,2.89261,3457.1,3456.1,2.89343]
[1721225532550,5.8926,3457.1,3456.3,0.30122682]
[1721225532875,5.89262,3457.1,3456.3,0.30122682]
[1721225533348,2.89268,3457.0,3456.3,0.30122682]
[1721225533549,3.0,3457.1,3456.3,0.30122682]
[1721225533777,3.0,3457.2,3456.3,0.30122682]
[1721225533994,2.89243,3457.3,3456.4,0.92733588]
[1721225534278,2.89252,3457.2,3456.4,0.55]
[1721225534444,3.0,3457.1,3456.4,0.55]
[1721225535681,2.4294,3457.0,3456.4,0.55]
[1721225535883,5.32213,3457.0,3456.4,0.55]
[1721225536076,3.0,3457.1,3456.4,0.55]
[1721225536282,5.89227,3457.5,3456.5,0.37444668]
[1721225536578,5.89227,3457.5,3456.6,0.55]
[1721225536579,2.89235,3457.4,3456.6,0.55]
[1721225536803,3.0,3457.3,3456.6,0.55]
[1721225536992,2.89282,3456.9,3456.3,0.30122682]
[1721225537606,2.89276,3456.9,3456.3,0.30122682]
[1721225537806,3.0,3457.4,3456.3,0.30122682]
[1721225537979,5.1741,3457.6,3456.4,0.37731124]
[1721225538195,2.89235,3457.4,3456.4,3.27049124]
[1721225538518,3.0,3457.3,3456.5,0.55]
[1721225538731,3.0,3457.3,3456.6,0.05785405]
[1721225538885,3.0,3457.4,3456.6,0.05785405]
[1721225539091,7.43,3457.9,3456.6,0.41217176]
[1721225539403,2.4058,3458.2,3456.9,2.89268]
[1721225539605,2.4058,3458.2,3457.0,0.55]
[1721225540195,2.4058,3458.2,3457.0,3.44266]
[1721225540432,0.531048,3458.6,3457.0,3.44266]
[1721225540737,2.89093,3459.1,3457.8,2.89199]
[1721225540949,2.89084,3459.2,3457.9,3.4419]
[1721225541099,2.89102,3459.0,3457.9,3.4419]
[1721225541297,2.89102,3459.0,3458.0,3.525229]
[1721225541497,2.89102,3459.0,3458.1,0.55]
[1721225541720,2.4015,3459.5,3458.1,0.55]
[1721225541721,2.89093,3459.1,3458.1,0.55]
[1721225542235,2.89093,3459.1,3458.1,3.44175]
[1721225542543,2.89067,3459.4,3458.2,2.94949522]
[1721225542697,2.89067,3459.4,3458.3,1.49161142]
[1721225542891,2.4015,3459.5,3458.3,1.49161142]
[1721225542892,2.89051,3459.6,3458.3,1.49161142]
[1721225543094,2.3419,3460.1,3458.9,2.89108]
[1721225543331,2.3419,3460.1,3458.3,8.579]
[1721225543332,5.23201,3460.1,3459.0,3.44096]
[1721225543651,2.88994,3460.3,3459.2,2.8908]
[1721225543793,2.88977,3460.5,3459.3,0.55]
[1721225543993,2.89001,3460.2,3459.3,0.55]
[1721225544229,2.89001,3460.2,3459.1,0.55]
[1721225544467,2.89001,3460.2,3458.8,0.55]
[1721225544625,2.89001,3460.2,3458.9,0.53]
[1721225544830,2.89027,3459.9,3459.0,0.55]
[1721225545050,3.0,3459.8,3459.0,0.55]
[1721225545467,3.0,3460.5,3459.2,2.89081]
[1721225545774,5.20134,3461.2,3459.9,2.89023]
[1721225545935,2.88936,3461.0,3459.9,2.89023]
[1721225546281,2.8896,3460.7,3460.0,0.55]
[1721225546645,2.8896,3460.7,3459.4,5.30995]
[1721225546646,2.88967,3460.6,3459.4,2.4193]
[1721225546955,2.88937,3461.0,3459.6,2.89049]
[1721225547271,2.88943,3460.9,3459.8,2.89033]
[1721225547441,2.88943,3460.9,3459.9,0.633082]
[1721225547648,1.50742572,3461.9,3460.0,3.44016]
[1721225547649,2.88916,3461.3,3460.0,3.44016]
[1721225547859,5.26745,3461.9,3460.0,3.44016]
[1721225547860,2.88917,3461.2,3460.0,3.44016]
[1721225548037,2.88926,3461.1,3460.0,3.44016]
[1721225548450,5.88935,3461.0,3460.0,0.55]
[1721225548965,2.88959,3460.7,3460.0,0.55]
[1721225549274,5.88967,3460.6,3459.4,2.4193]
[1721225549577,2.88992,3460.3,3459.4,2.4193]
[1721225549734,2.88992,3460.3,3459.0,2.891]
[1721225549937,2.88992,3460.3,3459.1,1.22495]
[1721225549938,2.89015,3460.1,3459.1,1.22495]
[1721225550145,2.89015,3460.1,3458.5,7.37]
[1721225550146,2.89064,3459.5,3458.5,7.37]
[1721225550379,2.89064,3459.5,3458.3,2.4995]
[1721225550380,5.89022,3460.0,3458.3,4.1995]
[1721225550562,5.89022,3460.0,3458.7,2.89125]
[1721225550563,2.89038,3459.8,3458.7,2.89125]
[1721225550765,3.0,3460.2,3458.4,4.0]
[1721225550766,5.89042,3459.7,3458.5,2.89142]
[1721225551036,3.0,3460.2,3458.3,2.4995]
[1721225551037,2.89063,3459.5,3458.3,2.4995]
[1721225551237,2.89085,3459.2,3458.3,2.4995]
[1721225551660,2.89067,3459.4,3458.3,2.4995]
[1721225551834,2.89067,3459.4,3458.3,5.39108]
[1721225552040,2.89077,3459.3,3458.3,5.39108]
[1721225552452,3.0,3459.8,3458.3,2.4995]
[1721225552664,3.0,3459.9,3458.4,3.14144]
[1721225552881,2.89067,3459.4,3458.5,0.55]
[1721225553776,2.89076,3459.3,3458.5,0.55]
[1721225553994,2.89094,3459.1,3458.5,0.55]
[1721225554192,2.8911,3458.9,3457.8,2.2954]
[1721225554337,2.89125,3458.8,3457.9,1.255744]
[1721225554537,2.89125,3458.8,3457.8,2.2954]
[1721225554740,3.0,3459.2,3457.5,0.30125559]
[1721225554945,2.2765,3459.3,3457.5,0.30125559]